[Event "Klatovy Open-B 2024"]
[Site "Klatovy"]
[Date "2024.07.01"]
[Round "3.4"]
[White "Lickova, Anna"]
[Black "Slansky, Jachym"]
[Result "0-1"]
[ECO "B72"]
[WhiteElo "1725"]
[BlackElo "1665"]
[Annotator "NA RC"]
[PlyCount "82"]
[EventDate "2024.06.21"]
[EventType "swiss"]
[EventCountry "CZE"]
[SourceTitle "playchess.com"]
[Source "ChessBase"]
[SourceQuality "1"]
[TimeControl "40/7200:0"]

1. e4 {[%emt 0:00:00]} c5 {[%emt 0:00:00]} 2. Nf3 {[%emt 0:00:00]} d6 {[%emt 0:00:00]} 3. d4 {[%emt 0:00:00]} cxd4 {[%emt 0:00:00]} 4. Nxd4 {[%emt 0:00:00]} Nf6 {[%emt 0:00:00]} 5. Nc3 {[%emt 0:00:00]} g6 {[%emt 0:00:00]} 6. Be3 {[%emt 0:00:00]} Bg7 {[%emt 0:00:00]} 7. Be2 {[%emt 0:00:00]} O-O {[%emt 0:00:00]} 8. O-O {[%emt 0:00:00]} a6 {[%emt 0:06:39]} 9. Kh1 {[%emt 0:00:31]} b5 {[%emt 0:01:57]} 10. a3 {[%emt 0:02:44]} Bb7 {[%emt 0:02:38]} 11. Bd3 {[%emt 0:14:01]} Nbd7 {[%emt 0:02:42]} 12. f4 {[%emt 0:08:57]} Nc5 {[%emt 0:05:01]} 13. e5 {[%emt 0:13:15]} dxe5 {[%emt 0:04:43]} 14. fxe5 {[%emt 0:00:00]} Nd5 {[%emt 0:06:12]} 15. Qd2 {[%emt 0:05:28]} Bxe5 {[%emt 0:04:46]} 16. b4 {[%emt 0:07:52]} Nxe3 {[%emt 0:04:33]} 17. Qxe3 {[%emt 0:11:42]} Qxd4 {[%emt 0:03:59]} 18. Qxd4 {[%emt 0:04:55]} Bxd4 {[%emt 0:00:00]} 19. bxc5 {[%emt 0:00:47]} Bxc3 {[%emt 0:00:00]} 20. Rad1 {[%emt 0:00:15]} Rfd8 {[%emt 0:04:15]} 21. Be2 {[%emt 0:00:56]} Rd2 {[%emt 0:04:26]} 22. Rxd2 {[%emt 0:04:45]} Bxd2 {[%emt 0:01:34]} 23. c4 {[%emt 0:00:00]} Bc6 {[%emt 0:05:29]} 24. h3 {[%emt 0:00:32]} Be3 {[%emt 0:00:55]} 25. cxb5 {[%emt 0:00:02]} axb5 {[%emt 0:00:00]} 26. Ra1 {[%emt 0:00:02]} b4 {[%emt 0:00:13]} 27. Bc4 {[%emt 0:01:21]} bxa3 {[%emt 0:02:00]} 28. Ba2 {[%emt 0:00:00]} e6 {[%emt 0:01:20]} 29. Bc4 {[%emt 0:03:26]} Bxc5 {[%emt 0:00:37]} 30. Ba2 {[%emt 0:00:14]} Bd5 {[%emt 0:00:23]} 31. Bxd5 {[%emt 0:01:55]} exd5 {[%emt 0:00:00]} 32. g4 {[%emt 0:00:00]} a2 {[%emt 0:00:00]} 33. g5 {[%emt 0:00:00]} Bd4 {[%emt 0:00:00]} 34. Rxa2 {[%emt 0:00:00]} Rxa2 {[%emt 0:00:00]} 35. h4 {[%emt 0:00:00]} Bc3 {[%emt 0:00:00]} 36. h5 {[%emt 0:00:00]} d4 {[%emt 0:00:16]} 37. h6 {[%emt 0:00:00]} d3 {[%emt 0:00:28]} 38. Kg1 {[%emt 0:00:00]} Re2 {[%emt 0:00:11]} 39. Kf1 {[%emt 0:00:00]} Ba5 {[%emt 0:00:00]} 40. Kg1 {[%emt 0:00:00]} d2 {[%emt 0:00:00]} 41. Kh1 {[%emt 1:56:31]} d1=Q# {[%emt 0:54:13]} 0-1

[Event "Klatovy Open-B 2024"]
[Site "Klatovy"]
[Date "2024.07.01"]
[Round "3.5"]
[White "Janouskova, Eliska"]
[Black "Svejdar, Pavel"]
[Result "1/2-1/2"]
[ECO "C10"]
[WhiteElo "1670"]
[BlackElo "1721"]
[Annotator "NA RC"]
[PlyCount "53"]
[EventDate "2024.06.21"]
[EventType "swiss"]
[EventCountry "CZE"]
[SourceTitle "playchess.com"]
[Source "ChessBase"]
[SourceQuality "1"]
[TimeControl "40/7200:0"]

1. e4 {[%emt 0:00:00]} e6 {[%emt 0:00:00]} 2. Nf3 {[%emt 0:00:00]} d5 {[%emt 0:00:00]} 3. Nc3 {[%emt 0:01:13]} c5 {[%emt 0:02:12]} 4. exd5 {[%emt 0:00:53]} exd5 {[%emt 0:00:00]} 5. d4 {[%emt 0:00:10]} Be6 {[%emt 0:06:56]} 6. Bb5+ {[%emt 0:06:01]} Nc6 {[%emt 0:09:52]} 7. O-O {[%emt 0:03:10]} a6 {[%emt 0:02:24]} 8. Bxc6+ {[%emt 0:00:54]} bxc6 {[%emt 0:00:00]} 9. Be3 {[%emt 0:01:46]} c4 {[%emt 0:05:17]} 10. Ne5 {[%emt 0:06:07]} Qc7 {[%emt 0:07:04]} 11. h3 {[%emt 0:07:10]} Bd6 {[%emt 0:05:29]} 12. Nf3 {[%emt 0:03:17]} Ne7 {[%emt 0:06:52]} 13. Ne2 {[%emt 0:02:24]} Nf5 {[%emt 0:13:52]} 14. Bd2 {[%emt 0:03:19]} a5 {[%emt 0:01:23]} 15. Re1 {[%emt 0:02:36]} O-O {[%emt 0:05:23]} 16. Qc1 {[%emt 0:02:02]} Bb4 {[%emt 0:05:48]} 17. c3 {[%emt 0:03:26]} Bd6 {[%emt 0:01:37]} 18. Bf4 {[%emt 0:01:49]} a4 {[%emt 0:03:01]} 19. Bxd6 {[%emt 0:04:36]} Qxd6 {[%emt 0:00:00]} 20. Nf4 {[%emt 0:00:59]} Rfe8 {[%emt 0:08:54]} 21. a3 {[%emt 0:03:42]} Bd7 {[%emt 0:04:49]} 22. Rxe8+ {[%emt 0:02:34]} Rxe8 {[%emt 0:00:00]} 23. Ne5 {[%emt 0:01:04]} f6 {[%emt 0:00:22]} 24. Nxd7 {[%emt 0:00:17]} Qxd7 {[%emt 0:00:00]} 25. Qd2 {[%emt 0:00:51]} Kf7 {[%emt 0:04:25]} 26. Re1 {[%emt 0:03:23]} Nd6 {[%emt 0:03:33]} 27. f3 {[%emt 0:02:05]} 1/2-1/2

[Event "Klatovy Open-B 2024"]
[Site "Klatovy"]
[Date "2024.07.01"]
[Round "3.6"]
[White "Bukvaj, Jan"]
[Black "Brychta, David"]
[Result "1-0"]
[ECO "A21"]
[WhiteElo "1652"]
[BlackElo "2124"]
[Annotator "TA"]
[PlyCount "95"]
[EventDate "2024.06.21"]
[EventType "swiss"]
[EventCountry "CZE"]
[SourceTitle "playchess.com"]
[Source "ChessBase"]
[SourceQuality "1"]
[TimeControl "40/7200:0"]

{[%evp 9,95,-37,47,41,54,54,81,82,83,80,95,87,83,79,93,85,124,114,120,121,130,123,134,102,105,60,126,126,119,124,354,152,184,125,125,123,181,168,183,177,172,175,260,267,330,330,430,425,436,344,336,329,329,318,282,241,241,241,386,380,537,537,488,542,855,817,3402,2906,2072,835,737,509,518,504,1253,1225,29973,29973,29958,12836,29989,29990,29992,29993,29993,29994,29994,29995]} 1. c4 {[%emt 0:00:00]} e5 {[%emt 0:00:00]} 2. Nc3 {[%emt 0:00:00]} Bb4 {[%emt 0:00:00]} 3. a3 {[%emt 0:00:00]} Bxc3 {[%emt 0:00:00]} 4. bxc3 {[%emt 0:00:00]} d6 {[%emt 0:00:00]} 5. d4 {[%emt 0:00:00]} exd4 {[%emt 0:00:00]} (5... Nf6 $15) 6. cxd4 $14 {[%emt 0:00:00]} Ne7 {[%emt 0:01:54]} 7. Nf3 {[%emt 0:00:00]} f6 {[%emt 0:00:07]} 8. e3 {[%emt 0:05:12] White is better.} Bg4 {[%emt 0:00:31][%cal Bc8g4,Bg4h5,Bh5g6,Bg6f7][%mdl 32]} 9. Be2 {[%emt 0:00:32]} O-O {[%emt 0:00:00]} 10. h3 {[%emt 0:00:02]} Bh5 {[%emt 0:00:06]} 11. O-O {[%emt 0:00:14]} Nbc6 {[%emt 0:00:00][%cal Bb8c6,Bc6e5,Be5d7,Bd7c5,Bc5d3][%mdl 32]} 12. Bb2 {[%emt 0:07:12]} Bg6 {[%emt 0:09:56]} 13. d5 {[%emt 0:18:05]} Ne5 {[%emt 1:47:26]} 14. Nd4 {[%emt 0:01:20]} Bf7 {[%emt 0:00:00]} 15. f4 {[%emt 0:21:35]} Nd7 {[%emt 0:00:00]} 16. f5 {[%emt 0:06:40] White is much more active.} Nc5 {[%emt 0:00:00]} 17. Bd3 {[%emt 0:06:37]} Nc8 {[%emt 0:00:00]} ({Better is} 17... b5 $14) 18. Ne6 {[%emt 0:04:26]} Bxe6 {[%emt 0:00:00]} 19. fxe6 {[%emt 0:00:00]} Qe7 $2 {[%emt 0:00:00]} (19... Nxd3 $16 {keeps fighting.} 20. Qxd3 Ne7) 20. Rf3 {[%emt 0:04:58]} (20. Bc2 $18 {is more deadly. Black must now prevent Qh5.} g6 21. Qg4) 20... Nb6 {[%emt 0:00:00]} 21. Qc2 {[%emt 0:05:30]} (21. a4 $18) 21... Nxd3 $16 {[%emt 0:00:00]} 22. Qxd3 {[%emt 0:00:37]} Rac8 {[%emt 0:00:00]} (22... Na4 $16 {was necessary.}) 23. a4 $18 {[%emt 0:04:04][%cal Ba3a4,Ba4a5,Ba5a6][%mdl 32]} c6 {[%emt 0:00:00]} 24. a5 {[%emt 0:01:01]} Na8 {[%emt 0:00:00]} 25. Rff1 {[%emt 0:05:37][%cal Bf3f1,Bf1a1,Ba1c1][%mdl 32]} cxd5 {[%emt 0:00:00]} (25... b6 $142 26. e4 bxa5 27. Rxa5 (27. Ba3 a4 $18) 27... cxd5) 26. cxd5 {[%emt 0:00:00]} b6 {[%emt 0:00:00]} 27. a6 {[%emt 0:02:01]} Rc5 {[%emt 0:00:00]} 28. Ba3 {[%emt 0:00:10]} Ra5 {[%emt 0:00:00]} 29. Bb4 {[%emt 0:06:24]} Rxa1 {[%emt 0:00:00]} 30. Rxa1 {[%emt 0:00:00]} Nc7 {[%emt 0:00:00][%cal Ba8c7,Bc7e8,Be8f6][%mdl 32]} 31. Rc1 {[%emt 0:00:20] [#] And now Qc4 would win.} Rd8 {[%emt 0:00:00] Black is weak on the light squares} 32. Rc6 {[%emt 0:00:16]} Ne8 {[%emt 0:00:00]} 33. Qc4 {[%emt 0:00:30]} ({Not} 33. e4 h6 34. Qf3 g6 $18) 33... f5 {[%emt 0:00:00]} (33... Rb8 $142 34. Qf4 Rd8) 34. Rc8 {[%emt 0:00:21]} h6 {[%emt 0:00:00]} (34... Kf8 {was called for.} 35. Rxd8 Qxd8) 35. Rxd8 {[%emt 0:00:01]} Qxd8 {[%emt 0:00:00][%mdl 4096] Endgame. KQB-KQN} 36. Qc6 {[%emt 0:00:00]} Nf6 {[%emt 0:00:00] Wards off Qd7} 37. Bxd6 {[%emt 0:00:37]} (37. Qxd6 Qxd6 38. Bxd6 g6 $11) 37... b5 {[%emt 0:00:00]} 38. e7 {[%emt 0:00:34]} Qe8 {[%emt 0:00:00]} 39. Qxe8+ {[%emt 0:00:00]} (39. Bc5 $142 h5 40. Qxe8+ (40. Bxa7 Qxe7 41. Bd4 Qb4 $18) 40... Nxe8 41. d6 (41. Bxa7 b4 $18) 41... Nxd6 42. Bxd6) 39... Nxe8 {[%emt 0:00:00] KB-KN} 40. Bc5 {[%emt 0:00:00]} Kf7 {[%emt 0:00:00] Against d6} 41. Bxa7 {[%emt 2:00:37]} b4 {[%emt 1:15:01]} (41... Nc7 $142 42. d6 Nxa6) 42. Bd4 {[%emt 0:02:53][%cal Od5d6] [#] White wants to mate with d6!} Kxe7 {[%emt 0:07:00]} 43. Be5 {[%emt 0:00:00]} b3 {[%emt 0:00:55][%cal Bb4b3,Bb3b2][%mdl 32]} 44. a7 {[%emt 0:00:00]} Nc7 {[%emt 0:00:00]} 45. d6+ {[%emt 0:00:00] White mates.} Ke6 {[%emt 0:00:00]} 46. dxc7 {[%emt 0:00:00]} Kxe5 {[%emt 0:00:00]} 47. c8=Q {[%emt 0:00:00]} b2 {[%emt 0:00:00]} 48. Qc2 {[%emt 0:00:00] Weighted Error Value: White=0.29 (precise) /Black=0.63.  Loses game:     	---       	Black=1      Missed win:     	White=1     	---        Mistake:       	White=1     	Black=6      Inaccurate:     	White=1     	Black=6      OK:         	White=14    	Black=8      Best:        	---       	Black=4} 1-0

[Event "Klatovy Open-B 2024"]
[Site "Klatovy"]
[Date "2024.07.01"]
[Round "3.7"]
[White "Vojta, Radek"]
[Black "Cervenka, Jakub"]
[Result "1-0"]
[ECO "C29"]
[WhiteElo "1693"]
[BlackElo "1638"]
[Annotator "NA RC"]
[PlyCount "55"]
[EventDate "2024.06.21"]
[EventType "swiss"]
[EventCountry "CZE"]
[SourceTitle "playchess.com"]
[Source "ChessBase"]
[SourceQuality "1"]
[TimeControl "40/7200:0"]

1. e4 {[%emt 0:00:00]} e5 {[%emt 0:00:00]} 2. Nc3 {[%emt 0:00:00]} Nf6 {[%emt 0:00:00]} 3. f4 {[%emt 0:00:00]} exf4 {[%emt 0:00:00]} 4. e5 {[%emt 0:00:00]} Ng8 {[%emt 0:00:00]} 5. Nf3 {[%emt 0:00:00]} Ne7 {[%emt 0:01:31]} 6. d4 {[%emt 0:00:00]} Ng6 {[%emt 0:03:21]} 7. Nd5 {[%emt 0:05:04]} d6 {[%emt 0:10:13]} 8. Nxf4 {[%emt 0:01:22]} dxe5 {[%emt 0:01:57]} 9. Nxg6 {[%emt 0:03:53]} hxg6 {[%emt 0:00:00]} 10. Nxe5 {[%emt 0:00:17]} Qh4+ {[%emt 0:01:05]} 11. g3 {[%emt 0:00:40]} Qe4+ {[%emt 0:07:30]} 12. Qe2 {[%emt 0:00:03]} Qxe2+ {[%emt 0:00:00]} 13. Bxe2 {[%emt 0:00:00]} Bf5 {[%emt 0:00:00]} 14. Bc4 {[%emt 0:04:03]} Nc6 {[%emt 0:08:35]} 15. Bxf7+ {[%emt 0:09:41]} Kd8 {[%emt 0:01:47]} 16. Nxc6+ {[%emt 0:00:00]} bxc6 {[%emt 0:00:00]} 17. Bb3 {[%emt 0:00:26]} Be4 {[%emt 0:03:12]} 18. O-O {[%emt 0:04:08]} Be7 {[%emt 0:08:04]} 19. Rf7 {[%emt 0:13:11]} Bf6 {[%emt 0:02:08]} 20. c3 {[%emt 0:00:50]} Bd5 {[%emt 0:01:05]} 21. Bxd5 {[%emt 0:00:44]} cxd5 {[%emt 0:00:00]} 22. Bf4 {[%emt 0:00:56]} g5 {[%emt 0:16:54]} 23. Be5 {[%emt 0:01:11]} Bxe5 {[%emt 0:00:23]} 24. dxe5 {[%emt 0:00:00]} Rg8 {[%emt 0:01:10]} 25. Raf1 {[%emt 0:03:13]} Rc8 {[%emt 0:09:16]} 26. Rf8+ {[%emt 0:01:56]} Rxf8 {[%emt 0:00:00]} 27. Rxf8+ {[%emt 0:00:00]} Kd7 {[%emt 0:00:00]} 28. e6+ {[%emt 0:00:53]} 1-0

[Event "Klatovy Open-B 2024"]
[Site "Klatovy"]
[Date "2024.07.01"]
[Round "3.9"]
[White "Koper, Stefan"]
[Black "Kasik, Denis"]
[Result "1-0"]
[ECO "C21"]
[WhiteElo "1845"]
[BlackElo "1596"]
[Annotator "NA RC"]
[PlyCount "89"]
[EventDate "2024.06.21"]
[EventType "swiss"]
[EventCountry "CZE"]
[SourceTitle "playchess.com"]
[Source "ChessBase"]
[SourceQuality "1"]
[TimeControl "40/7200:0"]

1. d4 {[%emt 0:01:11]} d5 {[%emt 0:00:00]} 2. c4 {[%emt 0:00:00]} e5 {[%emt 0:00:00]} 3. cxd5 {[%emt 0:01:20]} Qxd5 {[%emt 0:00:00]} 4. e3 {[%emt 0:00:00]} exd4 {[%emt 0:00:18]} 5. exd4 {[%emt 0:00:00]} Nc6 {[%emt 0:00:40]} 6. Be3 {[%emt 0:00:00] C21: Danish Gambit.} Nf6 {[%emt 0:00:39]} 7. Nf3 {[%emt 0:00:00]} Bb4+ {[%emt 0:00:45]} 8. Nc3 {[%emt 0:00:00]} O-O {[%emt 0:06:30]} 9. Be2 {[%emt 0:00:00]} Re8 {[%emt 0:13:55]} 10. O-O {[%emt 0:00:00]} Bxc3 {[%emt 0:01:39]} 11. bxc3 {[%emt 0:00:00]} Bf5 {[%emt 0:01:59]} 12. Qb3 {[%emt 0:03:34]} Qxb3 {[%emt 0:02:30]} 13. axb3 {[%emt 0:00:00]} Nd5 {[%emt 0:00:03]} 14. Bb5 {[%emt 0:01:38]} Nxe3 {[%emt 0:03:17]} 15. fxe3 {[%emt 0:00:00]} Rxe3 {[%emt 0:04:57]} 16. Bxc6 {[%emt 0:04:53]} bxc6 {[%emt 0:00:55]} 17. Ne5 {[%emt 0:00:08]} Be6 {[%emt 0:03:53]} 18. Rf3 $17 {[%emt 0:04:28]} (18. Nxc6 $15 {was preferrable.} Bd5 (18... Rxc3 19. d5 $15) (18... Bxb3 19. Nxa7 Rd8 20. Nc6 $11) 19. Ra6) 18... Rxf3 {[%emt 0:00:52]} 19. gxf3 {[%emt 0:00:00]} Bxb3 {[%emt 0:02:25]} 20. Nxc6 {[%emt 0:00:00]} Kf8 {[%emt 0:04:58]} 21. Kf2 {[%emt 0:00:27]} Bd5 {[%emt 0:04:47]} 22. Nxa7 {[%emt 0:00:00]} Be6 {[%emt 0:02:37]} (22... Ke8 $15 {is more appropriate.}) 23. Ra3 {[%emt 0:01:07]} g5 {[%emt 0:10:12]} 24. Nb5 {[%emt 0:00:00]} Rxa3 {[%emt 0:00:00]} 25. Nxa3 {[%emt 0:00:00]} c6 {[%emt 0:00:15]} 26. Nc2 {[%emt 0:00:00]} Ke7 {[%emt 0:01:17]} 27. Kg3 {[%emt 0:00:00]} f5 {[%emt 0:01:47]} 28. f4 {[%emt 0:00:00]} g4 $2 {[%emt 0:01:59] [#]} (28... h6 $11) 29. Ne3 $2 {[%emt 0:00:00]} (29. Kh4 $1 $18 {[%cal Rh4g5]}) 29... Kd6 {[%emt 0:07:39]} 30. c4 {[%emt 0:00:00]} Bd7 {[%emt 0:05:30]} 31. Kh4 {[%emt 0:00:00]} Ke6 {[%emt 0:04:43]} 32. Kg5 {[%emt 0:00:00]} h6+ {[%emt 0:00:46]} 33. Kxh6 $2 {[%emt 0:00:00]} (33. Kg6 $18) 33... Kf6 {[%emt 0:00:22]} 34. d5 {[%emt 0:01:32]} c5 {[%emt 0:01:32]} 35. Nd1 {[%emt 0:07:32]} Bc8 $2 {[%emt 0:02:35]} (35... Ba4 $16 36. Ne3 Bb3) 36. Kh7 {[%emt 0:00:00]} Kf7 {[%emt 0:01:45]} 37. Nf2 {[%emt 0:00:04]} Kf6 {[%emt 0:03:37]} 38. Nd3 {[%emt 0:00:00]} Ba6 {[%emt 0:00:00]} 39. Ne5 {[%emt 0:00:00]} Bc8 {[%emt 0:02:52]} 40. Kg8 {[%emt 0:00:00]} Ke7 {[%emt 0:01:23]} 41. Kg7 {[%emt 1:59:36]} Ba6 {[%emt 2:02:58]} 42. Kg6 {[%emt 0:00:00]} Bc8 {[%emt 0:02:17]} 43. Kg5 {[%emt 0:00:00]} Kd6 {[%emt 0:00:23]} 44. Kf6 {[%emt 0:00:00]} Kc7 {[%emt 0:00:38]} 45. Ke7 {[%emt 0:00:00]} 1-0

[Event "Klatovy Open-B 2024"]
[Site "Klatovy"]
[Date "2024.07.01"]
[Round "3.11"]
[White "Jelinek, Jan"]
[Black "Beran, Jakub"]
[Result "0-1"]
[ECO "B56"]
[WhiteElo "1662"]
[BlackElo "1791"]
[Annotator "NA RC"]
[PlyCount "122"]
[EventDate "2024.06.21"]
[EventType "swiss"]
[EventCountry "CZE"]
[SourceTitle "playchess.com"]
[Source "ChessBase"]
[SourceQuality "1"]
[TimeControl "40/7200:0"]

1. e4 {[%emt 0:00:00]} c5 {[%emt 0:00:00]} 2. Nf3 {[%emt 0:00:00]} Nc6 {[%emt 0:00:00]} 3. Nc3 {[%emt 0:00:00]} d6 {[%emt 0:00:00]} 4. Bb5 {[%emt 0:00:00]} Bd7 {[%emt 0:00:00]} 5. d4 {[%emt 0:00:00]} cxd4 {[%emt 0:00:00]} 6. Nxd4 {[%emt 0:00:00]} g6 {[%emt 0:00:00]} 7. Be3 {[%emt 0:00:00]} Bg7 {[%emt 0:00:00]} 8. O-O {[%emt 0:00:00]} Nf6 {[%emt 0:00:00]} 9. Nxc6 {[%emt 0:00:00]} Bxc6 {[%emt 0:00:00]} 10. Bxc6+ {[%emt 0:00:00]} bxc6 {[%emt 0:00:00]} 11. f4 {[%emt 0:00:36]} O-O {[%emt 0:00:00]} 12. Qf3 {[%emt 0:00:33]} Qa5 {[%emt 0:00:00]} 13. g4 {[%emt 0:22:56]} Rab8 {[%emt 0:13:29]} 14. Rab1 {[%emt 0:03:22]} Nd7 {[%emt 0:04:10]} 15. e5 {[%emt 0:00:36]} dxe5 {[%emt 0:00:46]} 16. Qxc6 {[%emt 0:01:35]} exf4 {[%emt 0:05:33]} 17. Bxf4 {[%emt 0:10:48]} Ne5 {[%emt 0:00:49]} 18. Qg2 {[%emt 0:02:32]} Rbd8 {[%emt 0:02:32]} 19. Qg3 {[%emt 0:14:44]} Nc4 {[%emt 0:10:03]} 20. Rfe1 {[%emt 0:15:23]} Nxb2 {[%emt 0:11:58]} 21. Be5 {[%emt 0:03:04]} Nc4 {[%emt 0:07:48]} 22. Rb5 {[%emt 0:01:07]} Bxe5 {[%emt 0:01:22]} 23. Rexe5 {[%emt 0:00:57]} Qc7 {[%emt 0:03:04]} 24. Rbc5 {[%emt 0:12:00]} Qb6 {[%emt 0:02:11]} 25. Na4 {[%emt 0:00:00]} Qb4 {[%emt 0:06:26]} 26. Re4 {[%emt 0:06:59]} Qxa4 {[%emt 0:01:53]} 27. Rcxc4 {[%emt 0:04:20]} Qxa2 {[%emt 0:00:40]} 28. Qc3 {[%emt 0:00:00]} Qb1+ {[%emt 0:01:03]} 29. Kg2 {[%emt 0:00:34]} Qb7 {[%emt 0:01:04]} 30. Kh3 {[%emt 0:00:27]} Rc8 {[%emt 0:01:41]} 31. Qe5 {[%emt 0:00:17]} Rxc4 {[%emt 0:00:03]} 32. Rxc4 {[%emt 0:00:00]} Qf3+ {[%emt 0:00:00]} 33. Kh4 {[%emt 0:00:51]} Qf2+ {[%emt 0:01:30]} 34. Qg3 {[%emt 0:00:21]} g5+ {[%emt 0:00:48]} 35. Kh5 {[%emt 0:00:54]} Qf6 {[%emt 0:00:20]} 36. Qd3 {[%emt 0:00:00]} Re8 {[%emt 0:05:14]} 37. Qf5 {[%emt 0:00:18]} Kg7 {[%emt 0:01:11]} 38. Qxg5+ {[%emt 0:00:20]} Qg6+ {[%emt 0:00:00]} 39. Qxg6+ {[%emt 0:01:01]} hxg6+ {[%emt 0:00:00]} 40. Kh4 {[%emt 0:00:00]} e5 {[%emt 0:01:34]} 41. Rc7 {[%emt 2:01:18]} Ra8 {[%emt 2:04:01]} 42. g5 {[%emt 0:00:19]} a5 {[%emt 0:01:24]} 43. Re7 {[%emt 0:00:00]} a4 {[%emt 0:00:00]} 44. Rxe5 {[%emt 0:00:00]} a3 {[%emt 0:00:00]} 45. Re1 {[%emt 0:00:00]} a2 {[%emt 0:00:02]} 46. Ra1 {[%emt 0:00:00]} f5 {[%emt 0:00:00]} 47. gxf6+ {[%emt 0:00:00]} Kxf6 {[%emt 0:00:00]} 48. Kg4 {[%emt 0:00:32]} Ke5 {[%emt 0:00:00]} 49. Kg5 {[%emt 0:01:48]} Ra6 {[%emt 0:01:37]} 50. c3 {[%emt 0:01:55]} Kd5 {[%emt 0:00:34]} 51. h4 {[%emt 0:00:00]} Kc4 {[%emt 0:00:00]} 52. Rxa2 {[%emt 0:01:47]} Rxa2 {[%emt 0:00:00]} 53. Kxg6 {[%emt 0:00:00]} Kd5 {[%emt 0:00:37]} 54. h5 {[%emt 0:00:00]} Ke6 {[%emt 0:00:00]} 55. c4 {[%emt 0:01:20]} Rg2+ {[%emt 0:00:11]} 56. Kh7 {[%emt 0:00:00]} Kf7 {[%emt 0:00:36]} 57. Kh6 {[%emt 0:00:27]} Rc2 {[%emt 0:01:01]} 58. Kh7 {[%emt 0:00:33]} Rxc4 {[%emt 0:00:29]} 59. Kh6 {[%emt 0:00:00]} Rc6+ {[%emt 0:00:22]} 60. Kh7 {[%emt 0:00:00]} Ra6 {[%emt 0:00:00]} 61. h6 {[%emt 0:00:00]} Rb6 {[%emt 0:00:00]} 0-1

[Event "Klatovy Open-B 2024"]
[Site "Klatovy"]
[Date "2024.07.01"]
[Round "3.12"]
[White "Rektor, David"]
[Black "Spackova, Martina"]
[Result "0-1"]
[ECO "C28"]
[WhiteElo "1625"]
[BlackElo "1777"]
[Annotator "NA RC"]
[PlyCount "30"]
[EventDate "2024.06.21"]
[EventType "swiss"]
[EventCountry "CZE"]
[SourceTitle "playchess.com"]
[Source "ChessBase"]
[SourceQuality "1"]
[TimeControl "40/7200:0"]

1. e4 {[%emt 0:00:00]} e5 {[%emt 0:00:00]} 2. Nc3 {[%emt 0:00:00]} Nf6 {[%emt 0:00:00]} 3. Bc4 {[%emt 0:00:00]} Nc6 {[%emt 0:00:42]} 4. d3 {[%emt 0:00:00]} Na5 {[%emt 0:03:28]} 5. Nge2 {[%emt 0:00:00]} Nxc4 {[%emt 0:00:52]} 6. dxc4 {[%emt 0:00:00]} Bc5 {[%emt 0:03:04]} 7. O-O {[%emt 0:00:00]} a6 {[%emt 0:03:38]} 8. h3 {[%emt 0:07:52]} d6 {[%emt 0:01:47]} 9. Kh1 {[%emt 0:01:19]} Be6 {[%emt 0:00:40]} 10. b3 {[%emt 0:01:13]} Qd7 {[%emt 0:03:35]} 11. Kh2 {[%emt 0:06:17]} Bg4 {[%emt 0:15:11]} 12. Bg5 {[%emt 0:47:40]} Bxe2 {[%emt 0:04:10]} 13. Qxe2 {[%emt 0:00:14]} Bd4 {[%emt 0:01:13]} 14. Qd3 {[%emt 0:16:34]} Bxc3 {[%emt 0:05:14]} 15. Bxf6 {[%emt 0:02:13]} Bxa1 {[%emt 1:16:26]} 0-1

[Event "Klatovy Open-B 2024"]
[Site "Klatovy"]
[Date "2024.07.01"]
[Round "3.13"]
[White "Babicky, Jan"]
[Black "Tejnor, Martin"]
[Result "1-0"]
[ECO "B25"]
[WhiteElo "1542"]
[BlackElo "1732"]
[Annotator "NA RC"]
[PlyCount "61"]
[EventDate "2024.06.21"]
[EventType "swiss"]
[EventCountry "CZE"]
[SourceTitle "playchess.com"]
[Source "ChessBase"]
[SourceQuality "1"]
[TimeControl "40/7200:0"]

1. e4 {[%emt 0:00:00]} c5 {[%emt 0:00:00]} 2. Nc3 {[%emt 0:00:00]} Nc6 {[%emt 0:00:00]} 3. g3 {[%emt 0:00:00]} g6 {[%emt 0:00:00]} 4. Bg2 {[%emt 0:00:00]} Bg7 {[%emt 0:00:00]} 5. f4 {[%emt 0:00:00]} d6 {[%emt 0:02:08]} 6. Nf3 {[%emt 0:00:00]} Nf6 {[%emt 0:00:00]} 7. O-O {[%emt 0:00:00]} O-O {[%emt 0:00:00]} 8. d3 {[%emt 0:00:00]} a6 {[%emt 0:00:00]} 9. a4 {[%emt 0:00:00]} Qc7 {[%emt 0:00:00]} 10. h3 {[%emt 0:00:00]} b6 {[%emt 0:00:26]} 11. g4 {[%emt 0:00:00]} Bb7 {[%emt 0:00:06]} 12. f5 {[%emt 0:00:00]} Rac8 {[%emt 0:01:37]} 13. Rb1 {[%emt 0:02:09]} Na5 {[%emt 0:19:16]} 14. g5 {[%emt 0:06:28]} Nd7 {[%emt 0:01:16]} 15. Qe1 {[%emt 0:02:14]} Nc6 {[%emt 0:07:35]} 16. Nd5 {[%emt 0:05:44]} Qd8 {[%emt 0:01:59]} 17. Qh4 {[%emt 0:04:15]} c4 {[%emt 0:16:49]} 18. f6 {[%emt 0:11:11]} exf6 {[%emt 0:00:00]} 19. gxf6 {[%emt 0:00:00]} Nxf6 {[%emt 0:01:16]} 20. Bg5 {[%emt 0:00:00]} Nxd5 {[%emt 0:08:52]} 21. Bxd8 {[%emt 0:00:31]} Ne3 {[%emt 0:00:00]} 22. Bf6 {[%emt 0:00:33]} Nxf1 {[%emt 0:00:00]} 23. Rxf1 {[%emt 0:00:00]} cxd3 {[%emt 0:00:00]} 24. cxd3 {[%emt 0:00:00]} Rce8 {[%emt 0:00:00]} 25. Bxg7 {[%emt 0:00:00]} Kxg7 {[%emt 0:00:00]} 26. Nd2 {[%emt 0:01:15]} Re6 {[%emt 0:01:43]} 27. e5 {[%emt 0:01:42]} dxe5 {[%emt 0:03:45]} 28. Bxc6 {[%emt 0:02:28]} Bxc6 {[%emt 0:00:00]} 29. Ne4 {[%emt 0:00:26]} Bxa4 {[%emt 0:00:05]} 30. Ng5 {[%emt 0:00:00]} h5 {[%emt 0:08:59]} 31. Nxe6+ {[%emt 0:01:36]} 1-0